bitfinex/quotes_ETHUSD_20251031
["timestamp","ask_amount","ask_price","bid_price","bid_amount"]
[1761884915769,9.93163172,3867.1,3867.0,1e-08]
[1761884916102,9.90578309,3867.1,3867.0,1e-08]
[1761884917269,28.13680609,3867.1,3867.0,1e-08]
[1761884917573,14.54687409,3867.1,3867.0,1e-08]
[1761884918389,3.98559709,3867.1,3867.0,1e-08]
[1761884918719,0.03584863,3867.1,3867.0,0.98290001]
[1761884918871,0.01,3867.1,3867.0,0.98290001]
[1761884919899,0.011,3867.1,3867.0,0.98290001]
[1761884920680,0.011,3867.1,3867.0,1.11170001]
[1761884922670,0.011,3867.1,3867.0,3.56888397]
[1761884922906,0.011,3867.1,3867.0,4.1290478]
[1761884923407,0.011,3867.1,3867.0,3.69768397]
[1761884924106,0.011,3867.1,3867.0,3.7235438]
[1761884924992,0.011,3867.1,3867.0,4.1290478]
[1761884926131,0.011,3867.1,3867.0,3.7235438]
[1761884926332,0.011,3867.1,3867.0,5.5287278]
[1761884926628,0.011,3867.1,3867.0,5.50286797]
[1761884929731,0.011,3867.1,3867.0,5.09736397]
[1761884930018,0.011,3867.1,3867.0,5.5287278]
[1761884930312,0.011,3867.1,3867.0,5.50286797]
[1761884931081,0.011,3867.1,3867.0,4.10318797]
[1761884931545,0.011,3867.1,3867.0,1.11170001]
[1761884932450,0.011,3867.1,3867.0,3.69768397]
[1761884932965,0.011,3867.1,3867.0,1.10640001]
[1761884933373,0.011,3867.1,3867.0,3.69238397]
[1761884935453,0.011,3867.1,3867.0,1.10640001]
[1761884935825,0.011,3867.1,3867.0,3.69238397]
[1761884936125,0.011,3867.1,3867.0,3.7182438]
[1761884936754,0.011,3867.1,3867.0,0.64545984]
[1761884936947,0.011,3867.1,3867.0,0.12880001]
[1761884937262,0.9305,3867.1,3867.0,1e-08]
[1761884937461,3.51641709,3867.1,3867.0,1e-08]
[1761884937627,3.54226572,3867.1,3867.0,1e-08]
[1761884938939,0.95634863,3867.1,3867.0,1e-08]
[1761884939278,0.9305,3867.1,3867.0,1e-08]
[1761884939567,3.51641709,3867.1,3867.0,1e-08]
[1761884941073,0.445,3867.1,3867.0,0.96910001]
[1761884941255,0.011,3867.1,3867.0,0.96910001]
[1761884941469,0.011,3867.1,3867.0,3.55508397]
[1761884942385,0.011,3867.1,3867.0,0.48230001]
[1761884943163,0.011,3867.1,3867.0,3.06828397]
[1761884943683,0.011,3867.1,3867.0,3.55508397]
[1761884944456,0.011,3867.1,3867.0,3.96058797]
[1761884944664,0.011,3867.1,3867.0,3.9864478]
[1761884944863,0.011,3867.1,3867.0,3.96058797]
[1761884945152,0.011,3867.1,3867.0,3.9864478]
[1761884945380,0.011,3867.1,3867.0,5.36026797]
[1761884946048,0.011,3867.1,3867.0,5.37126797]
[1761884946675,1e-08,3867.1,3867.0,5.37126797]
[1761884947214,1e-08,3867.1,3867.0,5.50006797]
[1761884947707,0.001,3867.5,3867.4,4.3909005]
[1761884947874,0.001,3867.5,3867.4,12.86031046]
[1761884948070,0.001,3867.5,3867.4,13.3212533]
[1761884948569,0.001,3867.5,3867.4,11.50890204]
[1761884950416,0.001,3867.5,3867.4,13.32071466]
[1761884950576,0.001,3867.5,3867.4,5.1484965]
[1761884950772,0.001,3867.5,3867.4,5.5540005]
[1761884952781,0.001,3867.5,3867.4,9.4040005]
[1761884955173,0.001,3867.5,3867.4,9.40788524]
[1761884956675,0.001,3867.5,3867.4,9.39868524]
[1761884957628,0.001,3867.5,3867.4,3.07190124]
[1761884957801,0.001,3867.5,3867.4,2.7145165]
[1761884957979,0.001,3867.5,3867.4,0.1288]
[1761884958296,0.001,3867.5,3867.4,0.534304]
[1761884958502,0.001,3867.5,3867.4,3.1200205]
[1761884958700,0.001,3867.5,3867.4,4.0826205]
[1761884958878,0.001,3867.5,3867.4,3.6050205]
[1761884959082,0.4229,3867.5,3867.4,3.1200205]
[1761884959617,0.4229,3867.5,3867.4,0.534304]
[1761884960125,0.8768,3867.5,3867.4,0.1288]
[1761884962498,3.46244964,3867.5,3867.4,0.1288]
[1761884963113,0.8768,3867.5,3867.4,0.1288]
[1761884965414,0.001,3867.5,3867.4,0.6073]
[1761884965615,0.001,3867.5,3867.4,3.0642165]
[1761884965799,0.001,3867.5,3867.4,3.4697205]
[1761884968211,0.001,3867.5,3867.4,3.49557766]
[1761884968410,0.001,3867.5,3867.4,3.97737766]
[1761884968719,0.001,3867.5,3867.4,3.9515205]
[1761884968932,0.001,3867.5,3867.4,3.97737766]
[1761884970815,0.001,3867.5,3867.4,3.9515205]
[1761884971043,0.001,3867.5,3867.4,7.82737766]
[1761884971351,0.001,3867.5,3867.4,7.8015205]
[1761884974346,0.001,3867.5,3867.4,7.3197205]
[1761884975531,0.001,3867.5,3867.4,7.4485205]
[1761884976123,0.001,3867.5,3867.4,3.5985205]
[1761884978168,0.4628,3867.5,3867.4,3.1200205]
[1761884978370,0.001,3867.5,3867.4,3.1200205]
[1761884978673,0.001,3867.5,3867.4,3.5985205]
[1761884979035,0.4628,3867.5,3867.4,0.534304]
[1761884979367,0.4628,3867.5,3867.4,2.9912205]
[1761884979832,0.9167,3867.5,3867.2,0.34487546]
[1761884980033,0.0046,3867.3,3867.2,0.75037946]
[1761884980348,0.0046,3867.3,3867.2,3.336226]
[1761884980561,0.001,3867.5,3867.4,2.5857165]
[1761884981069,0.9167,3867.5,3867.3,0.02585783]
[1761884981270,0.4549,3867.5,3867.3,0.02585783]
[1761884981566,0.9157,3867.4,3867.3,0.02585783]
[1761884981935,0.9157,3867.4,3867.2,0.37073396]
[1761884982136,0.4585,3867.3,3867.2,0.37073396]
[1761884982743,0.4585,3867.3,3867.2,0.34487546]
[1761884988760,0.0046,3867.3,3867.2,0.34487546]
[1761884989261,0.0046,3867.3,3867.2,0.47367546]
[1761884989469,0.4585,3867.3,3867.2,0.47367546]
[1761884991995,0.0046,3867.3,3867.2,0.49953396]
[1761884992200,0.001,3867.5,3867.2,0.97463396]
[1761884992506,0.001,3867.5,3867.4,0.880604]
[1761884992705,0.001,3867.5,3867.4,1.354604]
[1761884993003,0.001,3867.5,3867.4,4.0691205]
[1761884993507,0.001,3867.5,3867.4,4.09497766]
[1761884994606,0.001,3867.5,3867.4,4.0691205]
[1761884999015,0.001,3867.5,3867.4,4.09497766]
[1761884999923,0.001,3867.5,3867.4,3.96617766]
[1761885000117,0.001,3867.5,3867.4,4.09497766]
[1761885000621,0.001,3867.5,3867.4,5.49465766]
[1761885000786,0.001,3867.5,3867.4,5.3400005]
[1761885002733,0.001,3867.5,3867.4,5.44358222]
[1761885004195,0.001,3867.5,3867.4,9.29358222]
[1761885005422,0.001,3867.5,3867.4,7.01439822]
[1761885005739,0.001,3867.5,3867.4,6.9108165]
[1761885006586,0.001,3867.5,3867.4,3.0608165]
[1761885007071,0.001,3867.5,3867.4,3.4663205]
[1761885007276,0.001,3867.5,3867.4,3.96617766]
[1761885007568,0.001,3867.5,3867.4,3.49217766]
[1761885009128,0.4562,3867.5,3867.4,3.01707766]
[1761885009331,0.001,3867.5,3867.4,3.01707766]
[1761885009724,0.001,3867.5,3867.4,0.405504]
[1761885009725,0.9173,3867.5,3867.4,0.405504]
[1761885010731,0.9173,3867.5,3867.4,0.1288]
[1761885011736,0.001,3867.5,3867.4,2.7145165]
[1761885011948,0.4562,3867.5,3867.4,0.1288]
[1761885012151,0.4562,3867.5,3867.4,2.7145165]
[1761885012322,0.001,3867.5,3867.4,2.7145165]
[1761885012527,0.001,3867.5,3867.4,3.68947366]
[1761885012727,0.6475,3868.2,3867.4,0.50095716]
[1761885012960,0.6475,3868.2,3867.6,2.58552883]
[1761885013145,0.6475,3868.2,3867.7,0.02585515]
[1761885013528,0.4611,3868.1,3867.7,0.02585515]
[1761885014459,0.4552,3867.8,3867.4,2.99120623]
[1761885014969,0.4552,3867.8,3867.5,2.58563676]
[1761885015656,0.4552,3867.8,3867.3,0.43136183]
[1761885015872,0.9163,3867.8,3867.5,2.58558819]
[1761885016077,0.4552,3867.8,3867.3,0.405504]
[1761885016428,0.4552,3867.8,3867.4,2.58566251]
[1761885016644,0.4627,3867.8,3867.3,0.405504]
[1761885016849,0.4551,3867.4,3867.3,0.405504]
[1761885017053,0.4627,3867.8,3867.3,0.405504]
[1761885017286,0.4627,3867.8,3867.3,3.46393339]
[1761885017584,0.4551,3867.4,3867.3,0.405504]
[1761885017832,0.4551,3867.4,3867.2,2.93071454]
[1761885017833,0.4551,3867.4,3867.2,0.34487546]
[1761885017986,0.4755,3867.3,3867.2,0.34487546]
[1761885018143,0.0128,3867.3,3867.2,0.34487546]
[1761885018646,0.0128,3867.3,3867.2,0.37073396]
[1761885018963,0.4627,3867.6,3867.2,2.95658418]
[1761885019142,1.39968,3867.9,3867.2,2.95658418]
[1761885019540,1.86238,3867.9,3867.2,2.95658418]
[1761885019781,0.4734,3867.8,3867.2,2.95658418]
[1761885020841,0.4528,3867.3,3867.2,0.37073396]
[1761885021338,0.4528,3867.3,3867.2,0.34487546]
[1761885021567,0.926,3867.3,3867.2,0.34487546]
[1761885022693,0.001,3867.5,3867.2,0.92567546]
[1761885022900,0.001,3867.5,3867.3,0.02585783]
[1761885023082,0.001,3867.5,3867.4,0.1288]
[1761885023288,0.4744,3867.5,3867.4,0.1288]
[1761885023469,0.9272,3867.5,3867.4,0.1288]
[1761885028805,3.51284964,3867.5,3867.4,0.1288]
[1761885029487,2.58578336,3867.3,3867.2,0.34487546]
[1761885029813,32.55338436,3867.3,3867.2,0.34487546]
[1761885030116,7.61342936,3867.3,3867.2,0.34487546]
[1761885030316,7.38990236,3867.3,3867.2,0.34487546]
[1761885030794,12.29013536,3867.3,3867.2,0.34487546]
[1761885031196,7.86805736,3867.3,3867.2,0.34487546]
[1761885031889,4.46336336,3867.3,3867.2,0.34487546]
[1761885032094,10.48759599,3867.3,3867.2,0.34487546]
[1761885032296,10.46174736,3867.3,3867.2,0.34487546]
[1761885032512,8.94841236,3867.3,3867.2,0.34487546]
[1761885032986,8.56482936,3867.3,3867.2,0.34487546]
[1761885034434,4.46336336,3867.3,3867.2,0.34487546]
[1761885034714,8.36840999,3867.3,3867.2,0.34487546]
[1761885034912,8.34256136,3867.3,3867.2,0.34487546]
[1761885035984,1.40418,3867.3,3867.2,0.34487546]
[1761885036388,4.01581199,3867.3,3867.2,0.34487546]
[1761885036629,4.48921199,3867.3,3867.2,0.34487546]
[1761885036931,13.83588836,3867.3,3867.2,0.34487546]
[1761885037225,7.06648336,3867.3,3867.2,0.34487546]
[1761885038922,18.68598836,3867.3,3867.2,0.34487546]
[1761885039128,18.68598836,3867.3,3867.2,1e-08]
[1761885039648,2.32138,3867.3,3867.2,0.12880001]
[1761885039950,1.39968,3867.3,3867.2,0.58080001]
[1761885040948,1.39968,3867.3,3867.2,0.12880001]
[1761885041157,4.43826336,3867.3,3867.2,0.12880001]
[1761885041316,4.93731199,3867.3,3867.2,0.12880001]
[1761885041706,4.93731199,3867.3,3867.2,1e-08]
[1761885043143,4.43826336,3867.3,3867.2,1e-08]
[1761885043710,4.91146336,3867.3,3867.2,1e-08]
[1761885044218,1.85248,3867.3,3867.2,1e-08]
[1761885045051,1.39968,3867.3,3867.2,1e-08]
[1761885045551,3.98546336,3867.3,3867.2,1e-08]
[1761885047652,4.43826336,3867.3,3867.2,1e-08]
[1761885047887,4.93731199,3867.3,3867.2,1e-08]
[1761885048053,2.35152863,3867.3,3867.2,1e-08]
[1761885048241,1.87832863,3867.3,3867.2,1e-08]
[1761885048446,1.85248,3867.3,3867.2,1e-08]
[1761885048754,4.43826336,3867.3,3867.2,1e-08]
[1761885049562,4.91146336,3867.3,3867.2,1e-08]
[1761885051058,2.32568,3867.3,3867.2,1e-08]
[1761885051247,4.43826336,3867.3,3867.2,1e-08]
[1761885052154,4.91146336,3867.3,3867.2,1e-08]
[1761885054743,9.80893636,3867.3,3867.2,1e-08]
[1761885055967,8.48581336,3867.3,3867.2,1e-08]
[1761885056159,4.91246336,3867.3,3867.2,1e-08]
[1761885056340,4.93831199,3867.3,3867.2,1e-08]
[1761885056541,9.08488399,3867.3,3867.2,1e-08]
[1761885056872,9.98001046,3867.3,3867.2,1e-08]
[1761885057869,12.99071246,3867.3,3867.2,1e-08]
[1761885058639,11.68140246,3867.3,3867.2,1e-08]
[1761885058838,6.09249946,3867.3,3867.2,1e-08]
[1761885059175,6.09249946,3867.3,3866.7,0.002]
[1761885059180,26.77938772,3866.8,3866.7,0.002]
[1761885059373,26.77938772,3866.8,3864.2,2.20976324]
[1761885059374,3.98599837,3866.5,3864.6,0.1826]
[1761885059571,8.267942,3866.5,3865.8,0.1288]
[1761885059772,4.47189837,3866.5,3865.8,0.1288]
[1761885060067,10.361248,3866.5,3865.8,0.1288]
[1761885060235,10.361248,3866.5,3865.1,0.1228]
[1761885060236,5.782721,3866.5,3865.1,0.1228]
[1761885060440,5.307821,3866.5,3866.0,0.1288]
[1761885060738,5.307821,3866.5,3864.7,2.58750974]
[1761885060739,13.317239,3866.5,3864.7,2.58750974]
[1761885060939,13.317239,3866.5,3864.5,0.405504]
[1761885061243,13.566837,3866.5,3865.1,0.1228]
[1761885061442,12.638259,3866.5,3865.1,0.5787]
[1761885061761,5.782721,3866.5,3865.1,0.5787]
[1761885062079,0.011,3866.5,3865.2,0.02587188]
[1761885062263,2.59731837,3866.5,3865.7,0.4559]
[1761885062572,0.03684863,3866.5,3865.7,3.04273965]
[1761885062774,2.623167,3866.5,3865.7,0.4559]
[1761885063140,4.497747,3866.5,3865.1,0.1228]
[1761885063372,27.25463854,3866.5,3865.1,0.1228]
[1761885063554,12.32401591,3866.5,3864.6,2.58752535]
[1761885063756,9.71250437,3866.5,3864.6,2.58752535]
[1761885064140,23.36073437,3866.5,3864.5,3.04355606]
[1761885064344,23.36073437,3866.5,3866.3,1e-08]
[1761885064345,18.95870426,3866.4,3866.3,1e-08]
[1761885064544,24.9159161,3866.4,3866.3,1e-08]
[1761885065303,16.9884891,3866.4,3866.3,1e-08]
[1761885065595,18.42534557,3866.4,3866.3,1e-08]
[1761885065887,0.4558,3866.4,3866.3,1e-08]
[1761885066049,2.5861846,3866.7,3866.3,1e-08]
[1761885066248,2.61214325,3866.6,3866.3,1e-08]
[1761885066506,1.39968,3866.4,3866.3,1e-08]
[1761885066843,1.39968,3866.5,3866.3,1e-08]
[1761885067081,0.02584863,3866.4,3866.3,1e-08]
[1761885067386,2.58625269,3866.6,3866.3,1e-08]
[1761885067899,0.02584863,3866.5,3866.3,1e-08]
[1761885068046,1.39968,3866.5,3866.3,1e-08]
[1761885068254,0.02584863,3866.6,3866.3,1e-08]
[1761885068449,0.02584863,3866.7,3866.3,1e-08]
[1761885068645,0.02584863,3866.8,3866.4,0.4559]
[1761885068859,2.58595663,3867.1,3866.3,1e-08]
[1761885069085,1.39968,3866.9,3866.3,1e-08]
[1761885069241,0.02584863,3866.8,3866.3,1e-08]
[1761885069448,2.58627777,3866.6,3866.3,1e-08]
[1761885069648,0.02584863,3866.5,3866.3,1e-08]
[1761885069966,2.58622063,3866.7,3866.3,1e-08]
[1761885070166,0.02584863,3866.6,3866.3,1e-08]
[1761885070468,2.58613041,3866.8,3866.3,1e-08]
[1761885070658,2.61203323,3866.7,3866.6,0.1288]
[1761885070858,2.5861846,3866.7,3866.6,0.1288]
[1761885071059,4.45741323,3866.7,3866.6,0.1288]
[1761885071467,1.87122863,3866.7,3866.6,0.1288]
[1761885071677,1.84538,3866.7,3866.6,0.1288]
[1761885071863,1.39968,3866.7,3866.6,0.1288]
[1761885073262,1.39968,3866.7,3866.6,0.5877]
[1761885073594,0.001,3866.8,3866.6,1.0436]
[1761885073762,0.001,3866.8,3866.7,3.93235044]
[1761885073951,0.001,3866.8,3866.7,4.59709428]
[1761885076185,0.001,3866.8,3866.7,4.57123244]
[1761885076498,0.001,3866.8,3866.7,4.6748324]
[1761885076659,0.001,3866.8,3866.7,4.57123244]
[1761885077188,0.001,3866.8,3866.7,4.59709428]
[1761885078283,0.001,3866.8,3866.7,4.57123244]
[1761885078664,0.001,3866.8,3866.7,4.59709428]
[1761885079017,0.001,3866.8,3866.7,5.99677428]
[1761885079157,0.001,3867.6,3867.5,4.39083364]
[1761885079495,0.02584863,3869.8,3867.6,2.99108679]
[1761885079691,0.02584863,3869.8,3867.8,2.99095309]
[1761885079692,2.58431661,3869.5,3867.8,2.99095309]
[1761885079913,2.58431661,3869.5,3867.8,3.51460758]
[1761885080205,0.02584863,3869.4,3867.8,3.94445309]
[1761885080361,2.58450281,3869.3,3867.8,3.94445309]
[1761885080757,0.1984,3868.9,3867.8,1.359004]
[1761885080982,0.1984,3868.9,3867.8,4.3663406]
[1761885081498,0.22424863,3868.9,3867.8,4.3663406]
[1761885081893,2.80897912,3868.9,3867.8,4.3663406]
[1761885082053,2.58478211,3868.8,3867.8,4.3663406]
[1761885082254,0.1984,3868.9,3867.8,4.3663406]
[1761885082860,2.61064622,3868.8,3867.8,4.3663406]
[1761885083057,1.40068,3868.7,3867.8,4.3663406]
[1761885083595,0.001,3868.7,3867.8,3.9608366]
[1761885083759,0.001,3868.7,3867.8,4.3663406]
[1761885084615,1.40068,3868.7,3867.8,4.3663406]
[1761885085616,0.02584863,3868.6,3867.8,1.78089151]
[1761885085825,0.6355,3867.9,3867.1,0.1899]
[1761885086024,0.02584863,3867.8,3867.2,0.0258585]
[1761885086232,0.4338,3867.2,3866.3,0.45570001]
[1761885086523,0.4338,3867.2,3866.3,3.04214757]
[1761885086720,0.4338,3867.2,3867.1,0.1288]
[1761885087026,0.02584863,3867.5,3867.1,0.6266]
[1761885087329,1.59908,3867.9,3867.4,0.4978]
[1761885087330,0.001,3867.9,3867.4,0.4978]
[1761885087625,0.001,3867.9,3867.5,0.405504]
[1761885087826,0.001,3867.9,3867.5,0.861204]
[1761885088308,0.001,3867.9,3867.8,3.08324909]
[1761885088626,0.001,3867.9,3867.8,0.4978]
[1761885088798,0.001,3867.9,3867.8,3.10910358]
[1761885089724,0.001,3867.9,3867.8,0.52365449]
[1761885090124,0.001,3867.9,3867.8,0.4978]
[1761885090300,0.001,3867.9,3867.8,3.10910358]
[1761885090705,0.001,3867.9,3867.8,0.52365449]
[1761885090905,0.001,3867.9,3867.8,0.4978]
[1761885091134,0.6332,3867.9,3867.3,0.405504]
[1761885091425,0.0046,3867.8,3867.3,0.405504]
[1761885091988,0.0046,3867.8,3867.6,0.002]
[1761885092702,0.4295,3867.7,3867.6,0.002]
[1761885093622,0.1994,3867.9,3867.6,0.002]
[1761885093796,0.001,3867.9,3867.6,0.002]
[1761885094218,0.1994,3867.9,3867.6,0.002]
[1761885094397,0.4338,3867.7,3867.6,0.002]
[1761885095225,3.48021593,3867.7,3867.6,0.002]
[1761885095412,4.10929588,3867.7,3867.6,0.002]
[1761885096406,1.52377995,3867.7,3867.6,0.002]
[1761885096622,0.8947,3867.7,3867.6,0.002]
[1761885097406,3.48021593,3867.7,3867.6,0.1308]
[1761885097637,3.48021593,3867.7,3867.2,0.34487546]
[1761885097838,3.48021593,3867.7,3865.9,0.002]
[1761885097839,4.952205,3866.2,3865.9,0.002]
[1761885098140,4.17063287,3866.0,3865.9,0.002]
[1761885098636,4.6576815,3866.0,3865.9,0.1308]
[1761885100814,23.9050665,3866.0,3865.9,0.1308]
[1761885101015,16.98034087,3866.0,3865.9,0.1308]
[1761885101216,7.30280287,3866.0,3865.9,0.002]
[1761885101543,8.3610977,3866.0,3865.9,0.002]
[1761885101746,16.3535497,3866.0,3865.9,0.002]
[1761885102111,2.95147483,3866.0,3865.9,0.002]
[1761885102315,1.89318,3866.0,3865.9,0.002]
[1761885102634,4.5056815,3866.0,3865.9,0.002]
[1761885102943,4.9668815,3866.0,3865.9,0.002]
[1761885108132,4.5056815,3866.0,3865.9,0.002]
[1761885108544,4.9668815,3866.0,3865.9,0.002]
[1761885108744,5.74206322,3866.0,3865.9,0.002]
[1761885108965,5.71621459,3866.0,3865.9,0.002]
[1761885110570,4.94103287,3866.0,3865.9,0.002]
[1761885110767,4.5056815,3866.0,3865.9,0.002]
[1761885111068,3.98633287,3866.0,3865.9,0.002]
[1761885111436,4.46793287,3866.0,3865.9,0.002]
[1761885111835,4.46793287,3866.0,3865.9,0.1308]
[1761885112842,4.95273287,3866.0,3865.9,0.1308]
[1761885113243,4.46793287,3866.0,3865.9,0.1308]
[1761885114947,1.88128,3866.0,3865.9,0.1308]
[1761885115152,1.39968,3866.0,3865.9,0.1308]
[1761885115901,5.80247806,3867.6,3865.9,0.1308]
[1761885115902,0.02584863,3866.8,3866.0,0.405504]
[1761885116178,1.39968,3867.1,3866.1,1.14956585]
[1761885116390,0.02584863,3867.0,3866.7,0.485]
[1761885116591,0.02584863,3867.3,3866.7,0.485]
[1761885116817,2.58610751,3866.9,3866.7,0.485]
[1761885117293,3.98579772,3866.8,3866.3,0.02586452]
[1761885117462,1.27874034,3866.8,3865.1,2.75723909]
[1761885117671,0.02584863,3866.7,3865.8,0.4707]
[1761885117987,0.02584863,3866.7,3865.6,0.405504]
[1761885117988,0.02584863,3866.9,3866.0,0.4707]
[1761885118144,0.02584863,3866.9,3866.1,0.168]
[1761885118347,2.58625289,3866.6,3866.1,0.168]
[1761885118595,2.58634425,3866.5,3866.1,0.168]
[1761885119769,2.58637815,3866.5,3866.1,0.168]
[1761885119972,1.39968,3867.5,3866.2,0.168]
[1761885120149,2.5862758,3866.6,3866.4,0.485]
[1761885120779,2.58612148,3866.8,3866.2,0.168]
[1761885120780,2.58631837,3866.5,3866.2,0.168]
[1761885120978,2.58625787,3866.6,3866.2,0.168]
[1761885121887,0.02584863,3867.0,3866.2,0.168]
[1761885122089,0.02584863,3867.0,3866.5,0.485]
[1761885122385,0.02584863,3867.1,3866.9,0.485]
[1761885122589,1.39968,3867.3,3867.0,0.485]
[1761885122766,0.6753,3867.7,3867.0,0.51085983]
[1761885122767,2.58570407,3867.5,3867.0,0.51085983]
[1761885123186,2.58561293,3867.6,3867.0,0.485]
[1761885123389,1.39968,3867.5,3867.1,0.168]
[1761885123554,1.42552863,3867.4,3866.7,0.168]
[1761885123887,4.17570365,3867.7,3866.8,2.58611164]
[1761885124091,1.39968,3867.5,3866.9,0.0258605]
[1761885124404,0.02584863,3867.4,3866.8,0.4707]
[1761885124554,0.02584863,3867.5,3866.7,0.168]
[1761885124757,0.001,3867.7,3867.0,2.58598396]
[1761885124974,0.001,3867.7,3867.4,0.485]
[1761885125375,0.001,3867.7,3867.6,0.485]
[1761885125794,0.001,3867.7,3867.6,1.0845]
[1761885125965,0.001,3867.7,3867.6,1.37167383]
[1761885126169,0.001,3867.7,3867.6,3.82845662]
[1761885126495,0.001,3867.7,3867.6,3.95725662]
[1761885127931,0.001,3867.7,3867.6,4.2081048]
[1761885128076,0.001,3867.7,3867.6,11.56491868]
[1761885128287,0.001,3867.7,3867.6,11.53906286]
[1761885129292,0.001,3867.7,3867.6,3.15100201]
[1761885129599,0.001,3867.7,3867.6,4.3369048]
[1761885129777,0.001,3867.7,3867.6,4.36276062]
[1761885130176,0.001,3867.7,3867.6,5.63364062]
[1761885130475,0.001,3867.7,3867.6,11.53906286]
[1761885130694,0.001,3868.3,3868.2,2.99068573]
[1761885130896,0.001,3868.3,3868.2,4.23643387]
[1761885131100,0.001,3868.3,3868.2,4.70713387]
[1761885131288,0.001,3868.3,3868.2,5.70130987]
[1761885131484,0.001,3868.3,3868.2,6.08096206]
[1761885132281,0.001,3868.3,3868.2,11.88344012]
[1761885132683,2.58345702,3870.8,3869.9,2.58402145]
[1761885133017,2.77276654,3871.1,3870.2,0.405504]
[1761885133018,2.77275548,3871.1,3870.2,0.405504]
[1761885133185,0.4848,3871.6,3870.3,0.02583779]
[1761885133387,0.02584863,3871.5,3870.6,2.58357824]
[1761885133616,0.02584863,3871.5,3870.7,2.58349141]
[1761885133786,2.60884805,3871.5,3870.7,0.51671972]
[1761885133981,0.02584863,3871.5,3870.6,0.4707]
[1761885134217,0.6191,3870.7,3870.1,0.405504]
[1761885134423,0.4816,3870.7,3870.1,0.405504]
[1761885134607,0.4848,3871.4,3870.6,0.485]
[1761885134803,0.51064863,3871.9,3870.7,2.60929462]
[1761885134980,3.09337499,3871.9,3870.7,3.07999462]
[1761885135178,3.09337499,3871.9,3870.8,3.05408619]
[1761885135179,0.3282875,3871.8,3870.8,3.05408619]
[1761885135393,0.51064863,3871.9,3870.9,0.02583378]
[1761885135606,0.4848,3871.9,3870.9,0.405504]
[1761885135797,0.4848,3871.9,3870.9,2.98887991]
[1761885136020,1.39968,3871.7,3870.9,0.405504]
[1761885136220,0.02584863,3872.0,3870.9,0.405504]
[1761885136525,0.02584863,3872.7,3871.9,0.4916]
[1761885136721,0.02684863,3873.2,3871.9,0.4916]
[1761885136920,0.02684863,3873.2,3872.1,2.58256623]
[1761885137127,2.58192107,3873.1,3872.2,0.02582511]
[1761885137325,0.02584863,3873.0,3872.1,0.1729]
[1761885137526,0.6376,3872.2,3871.5,0.1729]
[1761885137727,0.4896,3871.6,3870.9,0.1729]
[1761885137892,0.4896,3871.6,3871.0,0.405504]
[1761885138133,2.58298625,3871.5,3871.0,0.405504]
[1761885138325,0.22154863,3871.9,3871.0,0.405504]
[1761885138490,2.58284527,3871.7,3871.0,0.903704]
[1761885138689,2.58284527,3871.7,3871.0,1.26970719]
[1761885139006,0.4538,3872.3,3871.0,1.26970719]
[1761885139007,0.1957,3872.6,3871.6,0.4916]
[1761885139198,2.58199395,3873.0,3871.8,0.4916]
[1761885139394,1.39968,3872.6,3871.9,0.02582711]
[1761885139607,2.58231957,3872.5,3871.9,0.02582711]
[1761885139807,1.39968,3872.4,3871.9,0.02582711]
[1761885140123,3.98193672,3872.6,3871.9,0.02582711]
[1761885140326,2.58225672,3872.6,3871.9,0.02582711]
[1761885140512,0.02584863,3872.8,3871.9,0.02582711]
[1761885140985,0.46,3872.7,3871.6,0.405504]
[1761885141190,2.58253918,3872.2,3871.6,0.405504]
[1761885141621,2.58267546,3872.0,3871.1,0.405504]
[1761885141921,2.58258095,3872.1,3871.3,0.405504]
[1761885142126,3.06838621,3872.2,3871.3,2.98858517]
[1761885142742,2.58245071,3872.3,3871.4,2.6088499]
[1761885142919,2.58245071,3872.3,3871.3,0.405504]
[1761885142920,0.02584863,3872.2,3871.3,0.405504]
[1761885143123,2.58244454,3872.3,3872.2,0.1288]
[1761885143295,4.93067317,3872.3,3872.2,0.1288]
[1761885144301,19.31377217,3872.3,3872.2,0.1288]
[1761885144490,19.28792354,3872.3,3872.2,0.1288]
[1761885144696,4.90482454,3872.3,3872.2,0.1288]
[1761885144999,5.67949341,3872.3,3872.2,0.1288]
[1761885145222,5.65364478,3872.3,3872.2,0.1288]
[1761885145604,11.00822878,3872.3,3872.2,0.1288]
[1761885145802,2.58306117,3871.4,3870.6,1.39968]
[1761885146006,2.58312615,3871.3,3870.5,2.583632]
[1761885146206,2.58312615,3871.3,3870.5,3.18224602]
[1761885146404,2.58312615,3871.3,3871.2,0.1288]
[1761885146794,3.04582615,3871.3,3871.2,0.1288]
[1761885147232,3.50582615,3871.3,3871.2,0.1288]
[1761885150205,3.50581161,3871.3,3871.2,0.1288]
[1761885150631,3.87324277,3871.3,3871.2,0.1288]
[1761885150834,1.31597979,3871.3,3869.5,0.894704]
[1761885151149,2.58365052,3870.5,3869.6,0.405504]
[1761885151348,2.58364552,3870.5,3869.6,0.405504]
[1761885151514,2.58382679,3870.3,3869.6,0.405504]
[1761885152126,2.58382679,3870.3,3870.2,0.1288]
[1761885152534,0.46,3870.5,3870.2,0.1288]
[1761885152911,0.4627,3870.3,3869.6,0.405504]
[1761885153232,0.4627,3870.3,3869.6,2.98972626]
[1761885153435,0.4627,3870.3,3870.2,0.1288]
[1761885154598,3.50647903,3870.3,3870.2,0.1288]
[1761885160696,2.58377903,3870.3,3870.2,0.1288]
[1761885160954,3.04647903,3870.3,3870.2,0.1288]
[1761885161115,3.04747903,3870.3,3870.2,0.1288]
[1761885161450,3.50747903,3870.3,3870.2,0.1288]
[1761885161654,4.13764705,3870.3,3870.2,0.1288]
[1761885162472,3.04747903,3870.3,3870.2,0.1288]
[1761885162777,2.5838749,3870.2,3869.4,0.4892]
[1761885163058,2.60972353,3870.2,3870.1,0.1288]
[1761885164153,3.53242353,3870.2,3870.1,0.1288]
[1761885165737,0.02584863,3870.2,3869.5,0.4892]